lending/lending_fUSD_20240809
["ID","MTS","AMOUNT","RATE_DAILY","PERIOD"]
[334569878,1723241445841,-155.0,0.00014519,2]
[334569880,1723241445857,-155.0,0.00014519,2]
[334569882,1723241445868,-401.26423212,0.00014519,2]
[334569883,1723241445879,-155.0,0.00014519,2]
[334569884,1723241445892,-315.48372612,0.00014519,2]
[334569885,1723241445904,-401.26423212,0.00014519,2]
[334569886,1723241445916,-155.0,0.00014519,2]
[334569887,1723241445927,-365.68547453,0.00014519,2]
[334569888,1723241445939,-1002.19997318,0.00014519,2]
[334569889,1723241445950,-390.34612116,0.00014519,2]
[334569890,1723241445961,-306.28305906,0.00014519,2]
[334569891,1723241445974,-167.10539186,0.00014523,2]
[334569892,1723241445985,-150.0,0.00014553,2]
[334569893,1723241445996,-791.10675434,0.00014573,2]
[334569894,1723241446007,-196.83442498,0.00014573,2]
[334569895,1723241446018,-155.55663043,0.00014579,2]
[334569896,1723241446029,-159.50994837,0.00014579,2]
[334569897,1723241446040,-155.07724106,0.00014579,2]
[334569898,1723241446051,-155.0,0.00014579,2]
[334569899,1723241446063,-297.42341449,0.00014579,2]
[334569900,1723241446075,-155.0,0.00014579,2]
[334569901,1723241446086,-453.53797503,0.00014579,2]
[334569902,1723241446099,-155.0,0.00014579,2]
[334569903,1723241446110,-155.0,0.00014579,2]
[334569904,1723241446121,-179.95807115,0.00014579,2]
[334569905,1723241446132,-205.77746098,0.00014579,2]
[334569906,1723241446145,-155.0,0.00014579,2]
[334569907,1723241446156,-507.54720335,0.00014579,2]
[334569908,1723241446167,-155.09286282,0.00014579,2]
[334569909,1723241446178,-150.0,0.0001458,2]
[334569910,1723241446189,-1000.0,0.00014645,2]
[334569911,1723241446201,-391.26,0.00014648,2]
[334569912,1723241446212,-531.2,0.00014656,2]
[334569913,1723241446223,-500.0,0.00014656,2]
[334569914,1723241446234,-638.44,0.00014656,2]
[334569915,1723241446245,-439.98434578,0.00014667,2]
[334569916,1723241446257,-155.0,0.00014667,2]
[334569917,1723241446267,-729.84211978,0.00014667,2]
[334569918,1723241446279,-155.0,0.00014667,2]
[334569919,1723241446291,-155.0,0.00014667,2]
[334569920,1723241446302,-155.061213,0.00014667,2]
[334569921,1723241446314,-439.98434578,0.00014667,2]
[334569922,1723241446325,-155.0,0.00014667,2]
[334569923,1723241446337,-155.0,0.00014667,2]
[334569924,1723241446348,-155.0,0.00014667,2]
[334569925,1723241446358,-182.73604488,0.00014667,2]
[334569926,1723241446367,-317.60491729,0.00014667,2]
[334569927,1723241446376,-452.7967,0.00014679,2]
[334569928,1723241446385,-791.10675434,0.00014685,2]
[334569929,1723241446563,-196.83442498,0.00014685,2]
[334569930,1723241446573,-150.0,0.00014771,2]
[334569931,1723241446582,-155.0,0.00014776,2]
[334569932,1723241446592,-315.4396343,0.00014776,2]
[334569933,1723241446603,-155.0,0.00014776,2]
[334569934,1723241446612,-155.0,0.00014776,2]
[334569935,1723241446621,-155.0,0.00014776,2]
[334569936,1723241446631,-155.0,0.00014776,2]
[334569937,1723241446640,-300.0,0.00014776,2]
[334569938,1723241446650,-155.0,0.00014776,2]
[334569939,1723241446660,-519.23187489,0.00014789,2]
[334569940,1723241446669,-155.0,0.00014789,2]
[334569941,1723241446678,-291.16250267,0.00014789,2]
[334569942,1723241446687,-155.0,0.00014789,2]
[334569943,1723241446696,-291.16250267,0.00014789,2]
[334569944,1723241446706,-791.10675434,0.00014797,2]
[334569945,1723241446715,-196.83442498,0.00014797,2]
[334569946,1723241446725,-150.0,0.00014806,2]
[334569947,1723241446734,-277.0,0.00014809,2]
[334569948,1723241446744,-150.0,0.00014825,2]
[334569949,1723241446754,-164.64,0.00014895,2]
[334569950,1723241446763,-395.19065593,0.00014896,2]
[334569951,1723241446772,-2000.0,0.000149,2]
[334569952,1723241446781,-211.41853709,0.000149,2]
[334569953,1723241446791,-211.41853708,0.000149,2]
[334569954,1723241446800,-791.10675434,0.00014909,2]
[334569955,1723241446809,-196.83442498,0.00014909,2]
[334569956,1723241446818,-150.0,0.00014988,2]
[334569957,1723241446827,-624.2402766,0.00015,2]
[334569958,1723241446836,-328.17531038,0.00015,2]
[334569959,1723241446846,-155.0,0.00015,2]
[334569960,1723241446860,-155.71899531,0.00015,2]
[334569961,1723241446869,-494.0,0.00015,2]
[334569962,1723241446878,-959.08156374,0.00015,10]
[334569963,1723241446891,-1000.0,0.00015,3]
[334569964,1723241446900,-4875.47509517,0.00015,7]
[334569965,1723241446909,-1929.98830795,0.00015,2]
[334569966,1723241446918,-1011.0,0.00015,2]
[334569967,1723241446927,-791.10675434,0.00015021,2]
[334569968,1723241446936,-196.83442498,0.00015021,2]
[334569969,1723241446945,-150.0,0.00015033,2]
[334569970,1723241446954,-8734.3,0.00015068,2]
[334569971,1723241446963,-300.0,0.00015068,2]
[334569972,1723241446973,-500.0,0.000151,2]
[334569973,1723241446982,-791.10675434,0.00015133,2]
[334569974,1723241446991,-196.83442498,0.00015133,2]
[334569975,1723241447000,-150.0,0.00015133,2]
[334569976,1723241447009,-186.16,0.00015151,2]
[334569977,1723241447018,-150.0,0.00015206,2]
[334569978,1723241447027,-791.10675434,0.00015245,2]
[334569979,1723241447036,-196.83442498,0.00015245,2]
[334569980,1723241447046,-150.0,0.00015259,2]
[334569981,1723241447055,-200.75738397,0.00015275,2]
[334569982,1723241447064,-791.10675434,0.00015358,2]
[334569983,1723241447072,-196.83442498,0.00015358,2]
[334569984,1723241447082,-150.0,0.00015424,2]
[334569985,1723241447091,-791.10675434,0.0001547,2]
[334569986,1723241447102,-196.83442498,0.0001547,2]
[334569987,1723241447117,-2717.24014392,0.00015483,2]
[334569988,1723241447126,-150.0,0.00015486,2]
[334569989,1723241447135,-791.10675434,0.00015582,2]
[334569990,1723241447143,-196.83442498,0.00015582,2]
[334569991,1723241447153,-322.76,0.00015616,2]
[334569992,1723241447162,-150.0,0.00015641,2]
[334569993,1723241447172,-791.10675434,0.00015694,2]
[334569994,1723241447181,-196.83442498,0.00015694,2]
[334569995,1723241447190,-150.0,0.00015712,2]
[334569996,1723241447199,-150.0,0.0001575,2]
[334569997,1723241447208,-150.0,0.0001575,2]
[334569998,1723241447217,-150.0,0.0001575,2]
[334569999,1723241447226,-8734.3,0.00015753,2]
[334570000,1723241447235,-791.10675434,0.00015806,2]
[334570001,1723241447245,-196.83442498,0.00015806,2]
[334570002,1723241447254,-164.64,0.00015818,2]
[334570003,1723241447263,-167.0,0.00015831,2]
[334570004,1723241447272,-150.0,0.00015859,2]
[334570005,1723241447281,-2000.0,0.000159,2]
[334570006,1723241447290,-791.10675434,0.00015918,2]
[334570007,1723241447299,-196.83442498,0.00015918,2]
[334570008,1723241447308,-150.0,0.00015939,2]
[334570009,1723241447317,-880.0,0.00016,2]
[334570010,1723241447326,-700.0,0.00016,2]
[334570011,1723241447335,-2000.0,0.00016,2]
[334570012,1723241447345,-2000.0,0.0001601,2]
[334570013,1723241447356,-2000.0,0.0001602,2]
[334570014,1723241447365,-3076.262437,0.0001603,2]
[334570015,1723241447375,-791.10675434,0.0001603,2]
[334570016,1723241447384,-196.83442498,0.0001603,2]
[334570017,1723241447393,-150.0,0.00016076,2]
[334570018,1723241447402,-9999.99,0.00016116,2]
[334570019,1723241447411,-791.10675434,0.00016142,2]
[334570020,1723241447420,-196.83442498,0.00016142,2]
[334570021,1723241447430,-150.0,0.00016165,2]
[334570022,1723241447440,-6702.0,0.000162,2]
[334570023,1723241447449,-167.10539186,0.00016252,2]
[334570024,1723241447459,-791.10675434,0.00016255,2]
[334570025,1723241447469,-196.83442498,0.00016255,2]
[334570026,1723241447479,-1000.0,0.00016272,2]
[334570027,1723241447488,-150.0,0.00016294,2]
[334570028,1723241447498,-200.0,0.0001634,2]
[334570029,1723241447508,-167.0,0.00016354,2]
[334570030,1723241447518,-791.10675434,0.00016367,2]
[334570031,1723241447527,-196.83442498,0.00016367,2]
[334570032,1723241447536,-150.0,0.00016367,2]
[334570033,1723241447545,-150.0,0.00016392,2]
[334570034,1723241447555,-235.76,0.00016438,2]
[334570035,1723241447564,-235.76,0.00016438,2]
[334570036,1723241447573,-235.76,0.00016438,2]
[334570037,1723241447583,-235.76,0.00016438,2]
[334570038,1723241447592,-235.76,0.00016438,2]
[334570039,1723241447603,-235.76,0.00016438,2]
[334570041,1723241447612,-2000.0,0.00016438,2]
[334570043,1723241447621,-795.96,0.00016438,2]
[334570044,1723241447630,-795.96,0.00016438,2]
[334570046,1723241447639,-795.96,0.00016438,2]
[334570048,1723241447649,-795.96,0.00016438,2]
[334570049,1723241447658,-795.96,0.00016438,2]
[334570050,1723241447667,-795.96,0.00016438,2]
[334570051,1723241447676,-8734.3,0.00016438,2]
[334570052,1723241447685,-1500.0,0.00016438,5]
[334570053,1723241447694,-300.0,0.00016438,2]
[334570054,1723241447703,-791.10675434,0.00016479,2]
[334570055,1723241447712,-196.83442498,0.00016479,2]
[334570056,1723241447721,-150.0,0.00016512,2]
[334570057,1723241447730,-791.10675434,0.00016591,2]
[334570059,1723241447739,-196.83442498,0.00016591,2]
[334570060,1723241447748,-150.0,0.00016618,2]
[334570061,1723241447758,-1011.0,0.00016665,2]
[334570062,1723241447767,-150.0,0.00016675,2]
[334570064,1723241447776,-791.10675434,0.00016703,2]
[334570066,1723241447786,-196.83442498,0.00016703,2]
[334570067,1723241447796,-2000.0,0.00016712,2]
[334570069,1723241447805,-186.5,0.00016712,2]
[334570071,1723241447814,-150.0,0.00016729,2]
[334570072,1723241447823,-800.0,0.0001678,2]
[334570073,1723241447832,-2000.0,0.0001678,2]
[334570074,1723241447842,-1700.0,0.0001678,2]
[334570075,1723241447853,-3100.0,0.0001678,2]
[334570076,1723241447864,-3000.0,0.0001678,2]
[334570077,1723241447873,-235.76,0.0001678,2]
[334570078,1723241447882,-795.96,0.0001678,2]
[334570079,1723241447892,-609.64,0.0001678,2]
[334570080,1723241447902,-20421.8800386,0.00016781,7]
[334570081,1723241447912,-37056.0787512,0.00016781,7]
[334570082,1723241447921,-3385.53446677,0.00016798,2]
[334570083,1723241447930,-6096.75,0.000168,7]
[334570084,1723241447939,-791.10675434,0.00016815,2]
[334570085,1723241447949,-196.83442498,0.00016815,2]
[334570086,1723241447958,-2717.24014392,0.00016829,2]
[334570087,1723241447968,-150.0,0.00016845,2]
[334570088,1723241447977,-447.73133696,0.00016848,2]
[334570089,1723241447987,-167.0,0.00016876,2]
[334570090,1723241447995,-2000.0,0.000169,2]
[334570091,1723241448005,-391.26,0.00016912,2]
[334570092,1723241448013,-791.10675434,0.00016927,2]
[334570093,1723241448023,-196.83442498,0.00016927,2]
[334570094,1723241448032,-150.0,0.00016947,2]
[334570095,1723241448042,-155.0,0.00016951,2]
[334570096,1723241448051,-150.0,0.00016983,2]
[334570097,1723241448060,-2000.0,0.00016986,2]
[334570098,1723241448069,-150.0,0.00016998,2]
[334570099,1723241448079,-791.10675434,0.00017039,2]
[334570100,1723241448089,-196.83442498,0.00017039,2]
[334570101,1723241448098,-150.0,0.00017071,2]
[334570102,1723241448108,-791.10675434,0.00017152,2]
[334570103,1723241448118,-196.83442498,0.00017152,2]
[334570104,1723241448128,-225.25,0.00017157,2]
[334570105,1723241448138,-150.0,0.00017165,2]
[334570106,1723241448148,-1405.79490401,0.00017259,2]
[334570107,1723241448158,-2000.0,0.0001726,2]
[334570108,1723241448168,-791.10675434,0.00017264,2]
[334570109,1723241448178,-196.83442498,0.00017264,2]
[334570110,1723241448187,-150.0,0.00017298,2]
[334570111,1723241448197,-800.0,0.00017328,2]
[334570112,1723241448207,-2000.0,0.00017328,2]
[334570113,1723241448216,-1700.0,0.00017328,2]
[334570114,1723241448226,-3100.0,0.00017328,2]
[334570115,1723241448236,-3000.0,0.00017328,2]
[334570116,1723241448245,-322.76,0.00017351,2]
[334570117,1723241448255,-791.10675434,0.00017376,2]
[334570118,1723241448265,-196.83442498,0.00017376,2]
[334570119,1723241448275,-150.0,0.00017382,2]
[334570120,1723241448284,-167.0,0.00017399,2]
[334570121,1723241448294,-791.10675434,0.00017488,2]
[334570122,1723241448304,-196.83442498,0.00017488,2]
[334570123,1723241448314,-150.0,0.00017524,2]
[334570124,1723241448324,-2000.0,0.00017534,2]
[334570125,1723241448334,-592.14,0.00017534,2]
[334570126,1723241448343,-791.10675434,0.000176,2]
[334570127,1723241448357,-196.83442498,0.000176,2]
[334570128,1723241448367,-150.0,0.000176,2]
[334570129,1723241448377,-150.0,0.000176,2]
[334570130,1723241448387,-150.0,0.000176,2]
[334570131,1723241448397,-150.0,0.000176,2]
[334570132,1723241448406,-791.10675434,0.00017712,2]
[334570133,1723241448416,-196.83442498,0.00017712,2]
[334570134,1723241448426,-150.0,0.00017751,2]
[334570135,1723241448436,-203.1984,0.00017776,2]
[334570136,1723241448446,-2000.0,0.00017808,2]
[334570137,1723241448456,-150.0,0.00017818,2]
[334570138,1723241448466,-791.10675434,0.00017824,2]
[334570139,1723241448476,-196.83442498,0.00017824,2]
[334570140,1723241448486,-800.0,0.00017876,2]
[334570141,1723241448495,-2000.0,0.00017876,2]
[334570142,1723241448505,-1700.0,0.00017876,2]
[334570143,1723241448515,-3100.0,0.00017876,2]
[334570144,1723241448525,-3000.0,0.00017876,2]
[334570145,1723241448535,-1000.0,0.00017899,2]
[334570146,1723241448545,-552.2,0.000179,2]
[334570147,1723241448555,-167.0,0.00017921,2]
[334570148,1723241448565,-791.10675434,0.00017936,2]
[334570149,1723241448575,-196.83442498,0.00017936,2]
[334570150,1723241448584,-150.0,0.00017978,2]
[334570151,1723241448594,-167.10539186,0.00017982,2]
[334570152,1723241448605,-228.3204552,0.00018,2]
[334570153,1723241448616,-676.21482263,0.00018,2]
[334570154,1723241448627,-308.21306784,0.00018,2]
[334570155,1723241448637,-656.50903949,0.00018,2]
[334570156,1723241448647,-1119.10695754,0.00018,2]
[334570157,1723241448656,-5552.68248598,0.00018,2]
[334570158,1723241448666,-750.0,0.00018,2]
[334570159,1723241448677,-150.0,0.00018035,2]
[334570160,1723241448686,-791.10675434,0.00018048,2]
[334570161,1723241448696,-196.83442498,0.00018048,2]
[334570162,1723241448705,-3200.0,0.00018055,2]
[334570163,1723241448715,-2000.0,0.00018082,2]
[334570164,1723241448724,-3160.97757136,0.00018082,2]
[334570165,1723241448734,-600.0,0.00018087,2]
[334570166,1723241448744,-1673.86337092,0.000181,2]
[334570167,1723241448754,-1000.0,0.00018113,2]
[334570168,1723241448763,-1800.0,0.00018119,2]
[334570169,1723241448773,-3400.0,0.00018133,2]
[334570170,1723241448783,-1800.0,0.0001814,2]
[334570171,1723241448793,-791.10675434,0.00018161,2]
[334570172,1723241448803,-196.83442498,0.00018161,2]
[334570173,1723241448814,-2717.24014392,0.00018174,2]
[334570174,1723241448823,-150.0,0.00018204,2]
[334570175,1723241448834,-150.0,0.00018217,2]
[334570176,1723241448844,-1000.0,0.00018229,2]
[334570177,1723241448856,-600.0,0.0001823,2]
[334570178,1723241448866,-600.0,0.00018233,2]
[334570179,1723241448876,-150.0,0.00018253,2]
[334570180,1723241448887,-600.0,0.00018263,2]
[334570181,1723241448900,-791.10675434,0.00018273,2]
[334570182,1723241448910,-196.83442498,0.00018273,2]
[334570183,1723241448920,-500.0,0.00018294,2]
[334570184,1723241448930,-500.0,0.00018297,2]
[334570185,1723241448939,-1011.0,0.0001833,2]
[334570186,1723241448949,-600.0,0.00018339,2]
[334570187,1723241448958,-500.0,0.00018352,2]
[334570188,1723241448968,-2000.0,0.00018356,2]
[334570189,1723241448978,-791.10675434,0.00018385,2]
[334570190,1723241448988,-196.83442498,0.00018385,2]
[334570191,1723241448997,-800.0,0.00018424,2]
[334570192,1723241449007,-2000.0,0.00018424,2]
[334570193,1723241449016,-1700.0,0.00018424,2]
[334570194,1723241449026,-3100.0,0.00018424,2]
[334570195,1723241449036,-3000.0,0.00018424,2]
[334570196,1723241449045,-150.0,0.00018431,2]
[334570197,1723241449054,-167.0,0.00018444,2]
[334570198,1723241449065,-600.0,0.00018448,2]
[334570199,1723241449074,-150.0,0.00018471,2]
[334570200,1723241449083,-3400.0,0.00018477,2]
[334570201,1723241449092,-500.0,0.00018482,2]
[334570202,1723241449104,-791.10675434,0.00018497,2]
[334570203,1723241449114,-196.83442498,0.00018497,2]
[334570204,1723241449123,-155.0,0.00018499,2]
[334570205,1723241449133,-1064.536616,0.000185,2]
[334570206,1723241449143,-942.91245341,0.00018514,2]
[334570207,1723241449153,-600.0,0.00018517,2]
[334570208,1723241449163,-150.0,0.00018525,2]
[334570209,1723241449173,-500.0,0.00018541,2]
[334570210,1723241449182,-500.0,0.00018542,2]
[334570211,1723241449192,-500.0,0.00018545,2]
[334570212,1723241449202,-500.0,0.00018558,2]
[334570213,1723241449211,-600.0,0.0001857,2]
[334570214,1723241449221,-2443.15692618,0.000186,2]
[334570215,1723241449230,-791.10675434,0.00018609,2]
[334570216,1723241449239,-196.83442498,0.00018609,2]
[334570217,1723241449249,-500.0,0.00018614,2]
[334570218,1723241449259,-2000.0,0.0001863,2]
[334570219,1723241449268,-150.0,0.00018657,2]
[334570220,1723241449278,-500.0,0.0001866,2]
[334570221,1723241449288,-3200.0,0.00018682,2]
[334570222,1723241449298,-150.0,0.00018688,2]
[334570223,1723241449308,-791.10675434,0.00018721,2]
[334570224,1723241449317,-196.83442498,0.00018721,2]
[334570225,1723241449327,-600.0,0.0001873,2]
[334570226,1723241449337,-1000.0,0.00018739,2]
[334570227,1723241449346,-600.0,0.00018761,2]
[334570228,1723241449361,-3200.0,0.00018762,2]
[334570229,1723241449369,-3400.0,0.00018776,2]
[334570230,1723241449379,-1800.0,0.00018801,2]
[334570231,1723241449389,-600.0,0.00018816,2]
[334570232,1723241449398,-1000.0,0.00018833,2]
[334570233,1723241449408,-791.10675434,0.00018833,2]
[334570234,1723241449417,-196.83442498,0.00018833,2]
[334570235,1723241449427,-150.0,0.00018833,2]
[334570236,1723241449437,-150.0,0.00018884,2]
[334570237,1723241449446,-500.0,0.00018891,2]
[334570238,1723241449456,-155.0,0.00018898,2]
[334570239,1723241449466,-2026.68449,0.00018899,2]
[334570240,1723241449476,-2000.0,0.00018904,2]
[334570241,1723241449485,-150.0,0.00018906,2]
[334570242,1723241449495,-500.0,0.00018912,2]
[334570243,1723241449504,-540.64971256,0.00018914,2]
[334570244,1723241449514,-3400.0,0.00018926,2]
[334570245,1723241449524,-500.0,0.00018938,2]
[334570246,1723241449533,-791.10675434,0.00018945,2]
[334570247,1723241449543,-196.83442498,0.00018945,2]
[334570248,1723241449552,-151.0,0.00018962,2]
[334570249,1723241449697,-500.0,0.00018966,2]
[334570250,1723241449707,-800.0,0.00018972,2]
[334570251,1723241449717,-1800.0,0.00018982,2]
[334570252,1723241449728,-151.0,0.00018984,2]
[334570253,1723241449738,-151.0,0.00018986,2]
[334570254,1723241449748,-151.0,0.00018986,2]
[334570255,1723241449759,-186.42739502,0.00019,2]
[334570256,1723241449769,-155.0,0.00019,2]
[334570257,1723241449779,-155.0,0.00019,2]
[334570258,1723241449790,-450.00362509,0.00019,2]
[334570259,1723241449800,-1000.73170468,0.00019,2]
[334570260,1723241449809,-600.0,0.00019,2]
[334570261,1723241449819,-1000.0,0.00019,2]
[334570262,1723241449830,-151.0,0.00019007,2]
[334570263,1723241449841,-500.0,0.00019038,2]
[334570264,1723241449853,-3400.0,0.00019054,2]
[334570265,1723241449863,-791.10675434,0.00019058,2]
[334570266,1723241449874,-196.83442498,0.00019058,2]
[334570267,1723241449884,-305.60329285,0.00019064,2]
[334570268,1723241449895,-322.76,0.00019086,2]
[334570269,1723241449905,-150.0,0.0001911,2]
[334570270,1723241449915,-500.0,0.00019119,2]
[334570271,1723241449923,-150.0,0.00019124,2]
[334570272,1723241449935,-11723.21,0.00019151,2]
[334570273,1723241449945,-791.10675434,0.0001917,2]
[334570274,1723241449955,-196.83442498,0.0001917,2]
[334570275,1723241449964,-391.26,0.00019176,2]
[334570276,1723241449975,-300.0,0.00019177,2]
[334570277,1723241449984,-300.0,0.00019177,2]
[334570278,1723241449995,-155.0,0.00019177,2]
[334570279,1723241450006,-155.0,0.00019177,2]
[334570280,1723241450016,-2000.0,0.00019178,2]
[334570281,1723241450025,-500.0,0.00019178,2]
[334570282,1723241450035,-500.0,0.00019178,2]
[334570283,1723241450045,-500.0,0.00019178,2]
[334570284,1723241450055,-500.0,0.00019178,2]
[334570285,1723241450065,-500.0,0.00019178,2]
[334570286,1723241450075,-500.0,0.00019178,2]
[334570287,1723241450086,-649.6219013,0.00019178,2]
[334570288,1723241450096,-1000.0,0.00019178,2]
[334570289,1723241450108,-1000.0,0.00019178,2]
[334570290,1723241450117,-1000.0,0.00019178,2]
[334570291,1723241450128,-1000.0,0.00019178,2]
[334570292,1723241450138,-1000.0,0.00019178,2]
[334570293,1723241450148,-1000.0,0.00019178,2]
[334570294,1723241450158,-1000.0,0.00019178,2]
[334570295,1723241450168,-828.70770582,0.00019178,2]
[334570296,1723241450177,-3164.67,0.00019178,2]
[334570297,1723241450187,-22680.8,0.00019178,2]
[334570298,1723241450197,-200.0,0.00019178,2]
[334570299,1723241450206,-200.0,0.00019178,2]
[334570300,1723241450216,-200.0,0.00019178,2]
[334570301,1723241450225,-200.0,0.00019178,2]
[334570302,1723241450235,-200.0,0.00019178,2]
[334570303,1723241450244,-200.0,0.00019178,2]
[334570304,1723241450254,-187.0,0.00019178,2]
[334570305,1723241450264,-3400.0,0.0001919,2]
[334570306,1723241450275,-750.0,0.000192,2]
[334570307,1723241450286,-600.0,0.00019202,2]
[334570308,1723241450296,-235.76,0.00019207,2]
[334570309,1723241450307,-795.96,0.00019207,2]
[334570310,1723241450316,-500.0,0.00019219,2]
[334570311,1723241450326,-791.10675434,0.00019282,4]
[334570312,1723241450336,-196.83442498,0.00019282,4]
[334570313,1723241450346,-600.0,0.00019286,2]
[334570314,1723241450361,-3400.0,0.0001929,2]
[334570315,1723241450371,-300.0,0.00019299,2]
[334570316,1723241450380,-19943.19856191,0.000193,2]
[334570317,1723241450391,-210.9584135,0.00019319,2]
[334570318,1723241450400,-500.0,0.00019334,2]
[334570319,1723241450410,-500.0,0.00019335,2]
[334570320,1723241450420,-200.06108428,0.00019336,2]
[334570321,1723241450430,-200.0,0.00019336,2]
[334570322,1723241450440,-150.0,0.00019337,4]
[334570323,1723241450450,-150.0,0.00019341,4]
[334570324,1723241450459,-1000.0,0.00019357,2]
[334570325,1723241450470,-500.0,0.00019358,2]
[334570326,1723241450479,-500.0,0.00019383,2]
[334570327,1723241450491,-791.10675434,0.00019394,4]
[334570328,1723241450501,-196.83442498,0.00019394,4]
[334570329,1723241450512,-600.0,0.00019408,2]
[334570330,1723241450523,-600.0,0.00019412,2]
[334570331,1723241450533,-600.0,0.00019418,2]
[334570332,1723241450544,-600.0,0.00019434,2]
[334570333,1723241450554,-600.0,0.00019449,2]
[334570334,1723241450565,-150.0,0.0001945,4]
[334570335,1723241450575,-150.0,0.0001945,4]
[334570336,1723241450585,-150.0,0.0001945,4]
[334570337,1723241450595,-547.69806277,0.00019451,2]
[334570338,1723241450607,-547.69806277,0.00019451,2]
[334570339,1723241450617,-4579.09318785,0.00019451,2]
[334570340,1723241450626,-1999.58756221,0.00019451,2]
[334570341,1723241450636,-155.0,0.00019451,2]
[334570342,1723241450645,-2000.0,0.00019452,2]
[334570343,1723241450655,-500.0,0.00019453,2]
[334570344,1723241450665,-1800.0,0.00019476,2]
[334570345,1723241450674,-3400.0,0.00019496,2]
[334570346,1723241450683,-1000.0,0.000195,2]
[334570347,1723241450693,-791.10675434,0.00019506,4]
[334570348,1723241450702,-196.83442498,0.00019506,4]
[334570349,1723241450712,-600.0,0.00019507,2]
[334570350,1723241450721,-306.27751913,0.00019519,2]
[334570351,1723241450730,-2717.24014392,0.00019519,2]
[334570352,1723241450739,-2000.0,0.0001952,2]
[334570353,1723241450749,-1700.0,0.0001952,2]
[334570354,1723241450758,-3100.0,0.0001952,2]
[334570355,1723241450768,-3000.0,0.0001952,2]
[334570356,1723241450777,-1000.0,0.00019527,2]
[334570357,1723241450786,-500.0,0.00019535,2]
[334570358,1723241450795,-600.0,0.00019547,2]
[334570359,1723241450805,-150.0,0.00019559,4]
[334570360,1723241450814,-500.0,0.00019561,2]
[334570361,1723241450823,-150.0,0.00019563,4]
[334570362,1723241450833,-600.0,0.00019566,2]
[334570363,1723241450843,-500.7,0.00019566,2]
[334570364,1723241450854,-1800.0,0.00019569,2]
[334570365,1723241450864,-791.10675434,0.00019618,4]
[334570366,1723241450873,-196.83442498,0.00019618,4]
[334570367,1723241450882,-500.0,0.00019629,2]
[334570368,1723241450891,-500.0,0.00019641,2]
[334570369,1723241450903,-186.5,0.00019658,2]
[334570370,1723241450912,-600.0,0.00019693,2]
[334570371,1723241450922,-167.10539186,0.00019711,2]
[334570372,1723241450931,-3200.0,0.0001972,2]
[334570373,1723241450940,-2000.0,0.00019726,2]
[334570374,1723241450950,-500.0,0.00019726,2]
[334570375,1723241450959,-600.0,0.00019728,2]
[334570376,1723241450969,-791.10675434,0.0001973,4]
[334570377,1723241450979,-196.83442498,0.0001973,4]
[334570378,1723241450989,-153.0,0.00019763,2]
[334570379,1723241450999,-500.0,0.00019767,2]
[334570380,1723241451008,-150.0,0.00019776,4]
[334570381,1723241451018,-150.0,0.0001979,4]
[334570382,1723241451028,-600.0,0.00019841,2]
[334570383,1723241451037,-791.10675434,0.00019842,4]
[334570384,1723241451047,-196.83442498,0.00019842,4]
[334570385,1723241451056,-500.0,0.00019843,2]
[334570386,1723241451066,-1000.0,0.00019847,2]
[334570387,1723241451075,-3200.0,0.00019862,2]
[334570388,1723241451085,-600.0,0.00019873,2]